{"text_format":"3","workbook":"xlsx","n_sheets":1,"sheets":["汇总表"],"not_rendered":{"defined_names":2},"read":"whole","date_system":"1900"}

{"sheet":"汇总表","index":0,"n_rows":283,"n_cols":6,"rows_kept":283,"merged":[[0,0,0,5],[1,0,1,5],[282,0,282,1]]}
["        2022年合肥市社会组织奖补情况一览表"]
["单位：万元"]
["序号","区域","奖补对象名称","类别/等级","市级\n资金","配套资金"]
[null,"市本级",null,null,130.8]
[1,"市本级","合肥市青少年心理研究会","新登记公益慈善类、科技类、行业协会类、城乡社区服务类",2]
[2,"市本级","合肥市托育行业协会","新登记公益慈善类、科技类、行业协会类、城乡社区服务类",2]
[3,"市本级","合肥市智能网联汽车创新中心","新登记公益慈善类、科技类、行业协会类、城乡社区服务类",2]
[4,"市本级","合肥中科信息工程技工学校","新登记公益慈善类、科技类、行业协会类、城乡社区服务类",2]
[5,"市本级","合肥行知技工学校","新登记公益慈善类、科技类、行业协会类、城乡社区服务类",2]
[6,"市本级","合肥市易制毒化学品行业协会","新登记公益慈善类、科技类、行业协会类、城乡社区服务类",2]
[7,"市本级","合肥市慈善总会","5A",10.4]
[8,"市本级","合肥市心理咨询师协会","5A",10.4]
[9,"市本级","合肥市服务贸易与服务外包行业协会","5A",10.4]
[10,"市本级","合肥市健康管理协会","5A",10.4]
[11,"市本级","合肥市社会工作联合会","5A",10.4]
[12,"市本级","合肥市春芽残疾人互助协会","5A",10.4]
[13,"市本级","合肥泉州商会","5A",8]
[14,"市本级","合肥市家政服务协会","5A",10.4]
[15,"市本级","合肥市建设工程造价协会","5A",10.4]
[16,"市本级","合肥市保险行业协会","5A",10.4]
[17,"市本级","合肥市铝材商会","4A",4]
[18,"市本级","合肥市工商联商（协）会秘书长协会","4A",4]
[19,"市本级","合肥市宣城商会","4A",4]
[20,"市本级","合肥宝业救助特困群体基金会","3A",2.6]
[21,"市本级","合肥市湿地保护协会","3A",2.6]
[null,"长丰县",null,null,{"$f":"SUM(E27:E44)","v":59},{"$f":"SUM(F27:F44)","v":10}]
[1,"长丰县","长丰双墩青苗荟和徽苑幼儿园","4A",2,2]
[2,"长丰县","长丰岗集海贝丽景幼儿园","4A",2,2]
[3,"长丰县","长丰双凤徐桥苑幼儿园","4A",2,2]
[4,"长丰县","长丰北城明珠幼儿园","3A",1,1]
[5,"长丰县","长丰双墩小博士幼儿园","3A",1,1]
[6,"长丰县","长丰岗集蓝天幼儿园","3A",1,1]
[7,"长丰县","长丰县庄墓镇刘浅社区社会组织联合会","3A",1,1]
[8,"长丰县","长丰县基层公共服务领域公益创投项目（4个）","基层公共服务领域公益创投项目",20]
[9,"长丰县","长丰县吴山镇官府社区社会组织联合会","百强联合会",1]
[10,"长丰县","长丰县吴山镇五十埠社区社会组织联合会","百强联合会",1]
[11,"长丰县","长丰县杨庙镇云峰村社区社会组织联合会","百强联合会",1]
[12,"长丰县","长丰县双墩镇泉河路社区社会组织联合会","百强联合会",1]
[13,"长丰县","长丰县水湖镇锦湖社区社会组织联合会","百强联合会",1]
[14,"长丰县","长丰县水湖镇富华社区社会组织联合会","百强联合会",1]
[15,"长丰县","长丰县左店镇淮光村社会组织联合会","百强联合会",1]
[16,"长丰县","长丰县庄墓镇刘浅社区社会组织联合会","百强联合会",1]
[17,"长丰县","长丰县杨庙镇庙北居委会社会组织联合会","百强联合会",1]
[18,"长丰县","岗集镇社区组织孵化园","街道级社区社会组织孵化园",20]
[null,"肥东县",null,null,{"$f":"SUM(E46:E75)","v":54.8},{"$f":"SUM(F46:F75)","v":25.8}]
[1,"肥东县","肥东志成双语学校","4A",2,2]
[2,"肥东县","安徽合肥医药卫生学校","4A",2,2]
[3,"肥东县","肥东大孝援通智能化养老信息服务中心","4A",2,2]
[4,"肥东县","肥东县作家协会","4A",2,2]
[5,"肥东县","肥东碧桂园童乐幼儿园","3A",1,1]
[6,"肥东县","肥东县笑童颜残疾人康复中心","3A",1.3,1.3]
[7,"肥东县","肥东亲亲幼儿园•瑞士园","3A",1,1]
[8,"肥东县","肥东县民族企业促进会","3A",1,1]
[9,"肥东县","肥东县学成职业培训学校","3A",1,1]
[10,"肥东县","肥东县店埠镇镇西社区社会组织联合会","3A",1.3,1.3]
[11,"肥东县","肥东亲亲幼儿园","3A",1,1]
[12,"肥东县","肥东县科新方大社会工作发展中心","3A",1.3,1.3]
[13,"肥东县","肥东县牛门洪拳协会","3A",1,1]
[14,"肥东县","肥东县迪伦职业培训学校","3A",1,1]
[15,"肥东县","肥东县启航职业培训学校","3A",1,1]
[16,"肥东县","肥东瑞景兰庭•童乐幼儿园","3A",1,1]
[17,"肥东县","肥东县店埠镇青春社区社会组织联合会","3A",1.3,1.3]
[18,"肥东县","肥东县宏爱社会工作发展中心","3A",1.3,1.3]
[19,"肥东县","肥东县店埠镇排头社区社会组织联合会","3A",1.3,1.3]
[20,"肥东县","肥东立志补习学校","3A",1,1]
[21,"肥东县","肥东县店埠镇排头社区社会组织联合会","百强联合会",1]
[22,"肥东县","肥东县店埠镇镇北社区社会组织联合会","百强联合会",1]
[23,"肥东县","肥东县店埠镇中心社区社会组织联合会","百强联合会",1]
[24,"肥东县","肥东县店埠镇花园社区社会组织联合会","百强联合会",1]
[25,"肥东县","肥东县店埠镇青春社区社会组织联合会","百强联合会",1]
[26,"肥东县","肥东县店埠镇光大社区社会组织联合会","百强联合会",1]
[27,"肥东县","肥东县店埠镇镇西社区社会组织联合会","百强联合会",1]
[28,"肥东县","肥东县店埠镇镇南社区社会组织联合会","百强联合会",1]
[29,"肥东县","肥东县店埠镇唐杨社区社会组织联合会","百强联合会",1]
[30,"肥东县","肥东县基层公共服务领域公益创投项目（4个）","基层公共服务领域公益创投项目",20]
[null,"肥西县",null,null,{"$f":"SUM(E77:E106)","v":228.4},{"$f":"SUM(F77:F106)","v":24.4}]
[1,"肥西县","肥西阳光爱心社","4A",2.6,2.6]
[2,"肥西县","肥西县莲藕协会","4A",2,2]
[3,"肥西县","肥西弘爱志愿者协会","4A",2.6,2.6]
[4,"肥西县","肥西县瑜伽协会","4A",2,2]
[5,"肥西县","肥西书香雅苑幼儿园","4A",2,2]
[6,"肥西县","肥西县蚕桑技术协会","4A",2,2]
[7,"肥西县","肥西新时代职业培训学校","3A",1,1]
[8,"肥西县","肥西县庐淮社工师事务所","3A",1.3,1.3]
[9,"肥西县","肥西县同为社工师事务所","3A",1.3,1.3]
[10,"肥西县","肥西县花岗镇朝阳广场舞舞蹈队","3A",1.3,1.3]
[11,"肥西县","肥西县桃花镇繁华新园社区庐文艺术团","3A",1.3,1.3]
[12,"肥西县","肥西思锐职业培训学校","3A",1,1]
[13,"肥西县","肥西县健身气功协会","3A",1,1]
[14,"肥西县","肥西清华外国语培训学校","3A",1,1]
[15,"肥西县","肥西县舞龙舞狮运动协会","3A",1,1]
[16,"肥西县","肥西上派精英上园幼儿园","3A",1,1]
[17,"肥西县","肥西县三河镇北街社区社会组织联合会","百强联合会",1]
[18,"肥西县","肥西县三河镇东街社区社会组织联合会","百强联合会",1]
[19,"肥西县","肥西县三河镇西街社区社会组织联合会","百强联合会",1]
[20,"肥西县","肥西县三河镇杨婆社区社会组织联合会","百强联合会",1]
[21,"肥西县","肥西县丰乐镇社会组织孵化园","街道级社区社会组织孵化园",20]
[22,"肥西县","肥西县官亭镇社会组织孵化园","街道级社区社会组织孵化园",20]
[23,"肥西县","肥西县桃花镇社会组织孵化园","街道级社区社会组织孵化园",20]
[24,"肥西县","肥西县高店镇社会组织孵化园","街道级社区社会组织孵化园",20]
[25,"肥西县","肥西县柏堰科技园社会组织孵化园","街道级社区社会组织孵化园",20]
[26,"肥西县","肥西县经开区社会组织孵化园","街道级社区社会组织孵化园",20]
[27,"肥西县","肥西县紫蓬山管委会社会组织孵化园","街道级社区社会组织孵化园",20]
[28,"肥西县","肥西县铭传乡社会组织孵化园","街道级社区社会组织孵化园",20]
[29,"肥西县","肥西县柿树岗乡社会组织孵化园","街道级社区社会组织孵化园",20]
[30,"肥西县","肥西县基层公共服务领域公益创投项目（4个）","基层公共服务领域公益创投项目",20]
[null,"巢湖市",null,null,{"$f":"SUM(E108:E124)","v":43.7},{"$f":"SUM(F108:F124)","v":16.7}]
[1,"巢湖市","巢湖市爱巢社会工作服务社","5A",5.2,5.2]
[2,"巢湖市","巢湖市亿信职业培训学校","4A",2,2]
[3,"巢湖市","巢湖市彩虹社会工作服务中心","4A",2.6,2.6]
[4,"巢湖市","巢湖市战鹰社会工作服务社","3A",1.3,1.3]
[5,"巢湖市","巢湖市兰花协会","3A",1,1]
[6,"巢湖市","巢湖市营养学会","3A",1.3,1.3]
[7,"巢湖市","巢湖妇产医院","3A",1,1]
[8,"巢湖市","巢湖市思想力社会工作服务中心","3A",1.3,1.3]
[9,"巢湖市","巢湖市白玉兰志愿者服务队","新登记公益慈善类、科技类、行业协会类、城乡社区服务类",1,1]
[10,"巢湖市","巢湖市卧牛山街道北大街社区社会组织联合会","百强联合会",1]
[11,"巢湖市","巢湖市凤凰山街道黎明社区社会组织联合会","百强联合会",1]
[12,"巢湖市","巢湖市天河街道官圩社区社会组织联合会","百强联合会",1]
[13,"巢湖市","巢湖市亚父街道裕溪河畔社区社会组织联合会","百强联合会",1]
[14,"巢湖市","巢湖市亚父街道朝阳门社区社会组织联合会","百强联合会",1]
[15,"巢湖市","巢湖市亚父街道洗耳池社区社会组织联合会","百强联合会",1]
[16,"巢湖市","巢湖市亚父街道义城社区社会组织联合会","百强联合会",1]
[17,"巢湖市","巢湖市基层公共服务领域公益创投项目（4个）","基层公共服务领域公益创投项目",20]
[null,"庐江县",null,null,{"$f":"SUM(E126:E143)","v":40.7},{"$f":"SUM(F126:F143)","v":14.7}]
[1,"庐江县","庐江县慈善协会","4A",2.6,2.6]
[2,"庐江县","庐江县彩虹社会工作服务中心","3A",1.3,1.3]
[3,"庐江县","庐江粮食行业协会","3A",1.3,1.3]
[4,"庐江县","庐江县彩虹社会工作服务中心","新引进备案专业社会组织",2.5,2.5]
[5,"庐江县","庐江爱心车队","新登记公益慈善类、科技类、行业协会类、城乡社区服务类",1,1]
[6,"庐江县","庐江县龙桥镇志愿服务联合会","新登记公益慈善类、科技类、行业协会类、城乡社区服务类",1,1]
[7,"庐江县","庐江县壹点爱志愿团","新登记公益慈善类、科技类、行业协会类、城乡社区服务类",1,1]
[8,"庐江县","庐江县文艺志愿者协会","新登记公益慈善类、科技类、行业协会类、城乡社区服务类",1,1]
[9,"庐江县","庐江县文化志愿服务中心","新登记公益慈善类、科技类、行业协会类、城乡社区服务类",1,1]
[10,"庐江县","庐江县向日葵社会工作服务中心","新登记公益慈善类、科技类、行业协会类、城乡社区服务类",1,1]
[11,"庐江县","庐江县天翊社会工作服务中心","新登记公益慈善类、科技类、行业协会类、城乡社区服务类",1,1]
[12,"庐江县","庐江县庐城镇鲍井社区社会组织联合会","百强联合会",1]
[13,"庐江县","庐江县庐城镇岗湾社区社会组织联合会","百强联合会",1]
[14,"庐江县","庐江县庐城镇绣溪社区社会组织联合会","百强联合会",1]
[15,"庐江县","庐江县庐城镇三里社区社会组织联合会","百强联合会",1]
[16,"庐江县","庐江县庐城镇磙塘社区社会组织联合会","百强联合会",1]
[17,"庐江县","庐江县庐城镇晨光社区社会组织联合会","百强联合会",1]
[18,"庐江县","庐江县基层公共服务领域公益创投项目（4个）","基层公共服务领域公益创投项目",20]
[null,"庐阳区",null,null,{"$f":"SUM(E145:E161)","v":85.8},{"$f":"SUM(F145:F161)","v":11.8}]
[1,"庐阳区","合肥市方圆社会工作事务所","5A",5.2,5.2]
[2,"庐阳区","合肥市乐清商会","4A",2,2]
[3,"庐阳区","合肥市明德评估指导中心","4A",2,2]
[4,"庐阳区","合肥市庐阳区为民社会工作服务中心","3A",1.3,1.3]
[5,"庐阳区","合肥市庐阳区福寿之家关怀服务中心","3A",1.3,1.3]
[6,"庐阳区","庐阳区亳州路街道社区社会组织孵化园","街道级社区社会组织孵化园",20]
[7,"庐阳区","庐阳区双岗街道社区社会组织孵化园","街道级社区社会组织孵化园",20]
[8,"庐阳区","庐阳区逍遥津街道拱辰社区社会组织联合会","百强联合会",1]
[9,"庐阳区","庐阳区逍遥津街道义仓社区社会组织联合会","百强联合会",1]
[10,"庐阳区","庐阳区三孝口街道大夫第社区社会组织联合会","百强联合会",1]
[11,"庐阳区","庐阳区亳州路街道畅园社区社会组织联合会","百强联合会",1]
[12,"庐阳区","庐阳区海棠街道建华社区社会组织联合会","百强联合会",1]
[13,"庐阳区","庐阳区亳州路街道古城社区社会组织联合会","百强联合会",1]
[14,"庐阳区","双岗街道万小店社区社会组织联合会","百强联合会",1]
[15,"庐阳区","庐阳区大杨镇草塘社区社会组织联合会","百强联合会",1]
[16,"庐阳区","庐阳区杏林街道丽都社区社会组织联合会","百强联合会",1]
[17,"庐阳区","庐阳区基层公共服务领域公益创投项目（5个）","基层公共服务领域公益创投项目",25]
[null,"蜀山区",null,null,{"$f":"SUM(E163:E190)","v":111.7},{"$f":"SUM(F163:F190)","v":17.7}]
[1,"蜀山区","合肥市蜀山区君善公益服务中心","5A",5.2,5.2]
[2,"蜀山区","蜀山经济开发区汽车行业协会","4A",2.6,2.6]
[3,"蜀山区","合肥市蜀山区篮球运动协会","4A",2,2]
[4,"蜀山区","合肥市蜀山区天天向上残障儿童康复中心","3A",1.3,1.3]
[5,"蜀山区","合肥蜀山经济开发区社会组织联合会","3A",1.3,1.3]
[6,"蜀山区","京狮青阳路幼儿园","3A",1,1]
[7,"蜀山区","合肥八一驾驶员培训学校","3A",1,1]
[8,"蜀山区","合肥市蜀山区西园街道社会组织联合会","3A",1.3,1.3]
[9,"蜀山区","合肥市蜀山区香山社会工作服务中心","新登记公益慈善类、科技类、行业协会类、城乡社区服务类",1,1]
[10,"蜀山区","合肥市蜀山区晨希社会工作服务中心","新登记公益慈善类、科技类、行业协会类、城乡社区服务类",1,1]
[11,"蜀山区","合肥市蜀山区经济技术开发区孵化园","街道级社区社会组织孵化园",20]
[12,"蜀山区","合肥市蜀山区琥珀街道翠竹园社区孵化园","街道级社区社会组织孵化园",20]
[13,"蜀山区","合肥市蜀山区五里墩街道孵化园","街道级社区社会组织孵化园",20]
[14,"蜀山区","蜀山区稻香村街道望江西路社区社会组织联合会","百强联合会",1]
[15,"蜀山区","蜀山区笔架山街道翠庭园社区社会组织联合会","百强联合会",1]
[16,"蜀山区","蜀山区南七街道科企社区社会组织联合会","百强联合会",1]
[17,"蜀山区","蜀山区西园街道汉嘉社区社会组织联合会","百强联合会",1]
[18,"蜀山区","蜀山区西园街道光明社区社会组织联合会","百强联合会",1]
[19,"蜀山区","蜀山区西园街道安居苑社区社会组织联合会","百强联合会",1]
[20,"蜀山区","蜀山区三里庵街道梅山路社区社会组织联合会","百强联合会",1]
[21,"蜀山区","蜀山区五里墩街道家家景园村社区社会组织联合会","百强联合会",1]
[22,"蜀山区","蜀山区稻香村街道黄山路社区社会组织联合会","百强联合会",1]
[23,"蜀山区","蜀山区西园街道七里塘社区社会组织联合会","百强联合会",1]
[24,"蜀山区","蜀山区五里墩街道团安村社区社会组织联合会","百强联合会",1]
[25,"蜀山区","蜀山区西园街道美虹社区社会组织联合会","百强联合会",1]
[26,"蜀山区","蜀山区稻香村街道合作化南路社区社会组织联合会","百强联合会",1]
[27,"蜀山区","蜀山区南七街道新华社区社会组织联合会","百强联合会",1]
[28,"蜀山区","蜀山区基层公共服务领域公益创投项目（4个）","基层公共服务领域公益创投项目",20]
[null,"包河区",null,null,{"$f":"SUM(E192:E230)","v":139.4},{"$f":"SUM(F192:F230)","v":14.4}]
[1,"包河区","合肥市包河区社会组织服务中心","5A",5.2,5.2]
[2,"包河区","合肥市包河区社区治理学院","3A",1.3,1.3]
[3,"包河区","合肥市包河区惠灵社会工作服务中心","3A",1.3,1.3]
[4,"包河区","合肥市包河区蓝莲花志愿服务中心","3A",1.3,1.3]
[5,"包河区","合肥市包河区烟墩街道西杭社区社会组织联合会","3A",1.3,1.3]
[6,"包河区","合肥市包河区福康通养老服务中心","新登记公益慈善类、科技类、行业协会类、城乡社区服务类",1,1]
[7,"包河区","合肥市包河区方兴社区志愿服务联合会","新登记公益慈善类、科技类、行业协会类、城乡社区服务类",1,1]
[8,"包河区","合肥市包河区益欣社会工作服务中心","新登记公益慈善类、科技类、行业协会类、城乡社区服务类",1,1]
[9,"包河区","合肥市包河区爱家社会服务中心","新登记公益慈善类、科技类、行业协会类、城乡社区服务类",1,1]
[10,"包河区","合肥市包河区淝河镇社区社会组织孵化园","街道级社区社会组织孵化园",20]
[11,"包河区","合肥市包河区义城街道社区社会组织孵化园","街道级社区社会组织孵化园",20]
[12,"包河区","合肥市包河区望湖街道沁心湖社区社会组织孵化园","街道级社区社会组织孵化园",20]
[13,"包河区","合肥市包河区包公街道包河社区社会组织孵化园","街道级社区社会组织孵化园",20]
[14,"包河区","合肥市包河区方兴社区社会组织联合会","百强联合会",1]
[15,"包河区","合肥市包河区万年埠街道万慈社区社会组织联合会","百强联合会",1]
[16,"包河区","合肥市包河区滨湖世纪社会组织联合会","百强联合会",1]
[17,"包河区","包河区望湖街道沁心湖社区社会组织联合会","百强联合会",1]
[18,"包河区","包河区芜湖路街道南园社区社会组织联合会","百强联合会",1]
[19,"包河区","包河区常青街道淝南社区社会组织联合会","百强联合会",1]
[20,"包河区","包河区包公街道美湖社区社会组织联合会","百强联合会",1]
[21,"包河区","包河区烟墩街道滨湖明珠社区社会组织联合会","百强联合会",1]
[22,"包河区","包河区骆岗街道包河苑社区社会组织联合会","百强联合会",1]
[23,"包河区","合肥市包河区万年埠街道云海社区社会组织联合会","百强联合会",1]
[24,"包河区","合肥市包河区万年埠街道云华社区社会组织联合会","百强联合会",1]
[25,"包河区","包河区常青街道竹西社区社会组织联合会","百强联合会",1]
[26,"包河区","包河区芜湖路街道曙光社区社会组织联合会","百强联合会",1]
[27,"包河区","包河区包公街道雨花桥社区社会组织联合会","百强联合会",1]
[28,"包河区","包河区芜湖路街道望江东路社区社会组织联合会","百强联合会",1]
[29,"包河区","合肥市包河区烟墩街道欣园社区社会组织联合会","百强联合会",1]
[30,"包河区","包河区骆岗街道石桥社区社会组织联合会","百强联合会",1]
[31,"包河区","合肥市包河区烟墩街道云川社区社会组织联合会","百强联合会",1]
[32,"包河区","合肥市包河区烟墩街道西杭社区社会组织联合会","百强联合会",1]
[33,"包河区","包河区骆岗街道繁华社区社会组织联合会","百强联合会",1]
[34,"包河区","包河区骆岗街道车谷社区社会组织联合会","百强联合会",1]
[35,"包河区","包河区常青街道油坊岗社区社会组织联合会","百强联合会",1]
[36,"包河区","包河区望湖街道望湖社区社会组织联合会","百强联合会",1]
[37,"包河区","合肥市包河区烟墩街道顺园社区社会组织联合会","百强联合会",1]
[38,"包河区","包河区包公街道包河社区社会组织联合会","百强联合会",1]
[39,"包河区","包河区基层公共服务领域公益创投项目（4个）","基层公共服务领域公益创投项目",20]
[null,"瑶海区",null,null,{"$f":"SUM(E232:E252)","v":61.8},{"$f":"SUM(F232:F252)","v":12.8}]
[1,"瑶海区","合肥市瑶海区致行社会工作事务所","4A",2.6,2.6]
[2,"瑶海区","瑶海区三里街街道凤阳一村社区社会组织联合会","3A",1.3,1.3]
[3,"瑶海区","瑶海区三里街街道天长路社区社会组织联合会","3A",1.3,1.3]
[4,"瑶海区","瑶海区三里街街道铁路一村社区社会组织联合会","3A",1.3,1.3]
[5,"瑶海区","瑶海区三里街街道临淮路社区社会组织联合会","3A",1.3,1.3]
[6,"瑶海区","合肥市瑶海区星火社会公益发展中心","新登记公益慈善类、科技类、行业协会类、城乡社区服务类",1,1]
[7,"瑶海区","合肥市瑶海区东方盛虹社会工作服务中心","新登记公益慈善类、科技类、行业协会类、城乡社区服务类",1,1]
[8,"瑶海区","合肥市瑶海区电子商务协会","新登记公益慈善类、科技类、行业协会类、城乡社区服务类",1,1]
[9,"瑶海区","合肥市瑶海区初心社会工作事务所","新登记公益慈善类、科技类、行业协会类、城乡社区服务类",1,1]
[10,"瑶海区","合肥市瑶海区静安养亲里养老服务中心","新登记公益慈善类、科技类、行业协会类、城乡社区服务类",1,1]
[11,"瑶海区","瑶海区和平路街道社会组织孵化园","街道级社区社会组织孵化园",20]
[12,"瑶海区","瑶海区胜利路街道濉溪东路社区社会组织联合会","百强联合会",1]
[13,"瑶海区","瑶海区明光路街道全椒路社区社会组织会","百强联合会",1]
[14,"瑶海区","瑶海区龙岗开发区华都社区社会组织联合会","百强联合会",1]
[15,"瑶海区","瑶海区和平路街道华业社区社会组织联合会","百强联合会",1]
[16,"瑶海区","瑶海区方庙街道万绿园社区社会组织联合会","百强联合会",1]
[17,"瑶海区","瑶海区七里站街道春华社区社会组织联合会","百强联合会",1]
[18,"瑶海区","瑶海区城东街道柳荫塘社区社会组织联合会","百强联合会",1]
[19,"瑶海区","瑶海区三里街街道铁路一村社区社会组织联合会","百强联合会",1]
[20,"瑶海区","瑶海区大兴镇兴集社区社区社会组织联合会","百强联合会",1]
[21,"瑶海区","瑶海区基层公共服务领域公益创投项目（4个）","基层公共服务领域公益创投项目",20]
[null,"经开区",null,null,{"$f":"SUM(E254:E267)","v":87.2},{"$f":"SUM(F254:F267)","v":8.2}]
[1,"经开区","合肥经济技术开发区梦之桥残疾人康复中心","3A",1.3,1.3]
[2,"经开区","合肥经济技术开发区晓燕子康复中心","3A",1.3,1.3]
[3,"经开区","合肥经济技术开发区芙蓉社区社会组织联合会","3A",1.3,1.3]
[4,"经开区","合肥经济技术开发区海恒社区社会组织联合会","3A",1.3,1.3]
[5,"经开区","合肥皖红东海幼儿园","3A",1,1]
[6,"经开区","合肥经开区润生社会工作服务中心","新登记公益慈善类、科技类、行业协会类、城乡社区服务类",1,1]
[7,"经开区","合肥经济技术开发区中义社会工作服务中心","新登记公益慈善类、科技类、行业协会类、城乡社区服务类",1,1]
[8,"经开区","合肥经开区临湖社区社会组织孵化园","街道级社区社会组织孵化园",20]
[9,"经开区","合肥经开区社会组织孵化园","县区级社会组织孵化园",50]
[10,"经开区","合肥经济技术开发区芙蓉社区社会组织联合会","百强联合会",1]
[11,"经开区","合肥经济技术开发区海恒社区社会组织联合会","百强联合会",1]
[12,"经开区","合肥经济技术开发区莲花社区社会组织联合会","百强联合会",1]
[13,"经开区","合肥经济技术开发区锦绣社区社会组织联合会","百强联合会",1]
[14,"经开区","经开区基层公共服务领域公益创投项目（1个）","基层公共服务领域公益创投项目",5]
[null,"高新区",null,null,{"$f":"SUM(E269:E276)","v":15.2},{"$f":"SUM(F269:F276)","v":7.2}]
[1,"高新区","合肥高新区太空科技研究中心","4A",2.6,2.6]
[2,"高新区","合肥高新区众创社会工作服务中心","4A",2.6,2.6]
[3,"高新区","合肥高新区绿迹环保垃圾分类发展中心","新登记公益慈善类、科技类、行业协会类、城乡社区服务类",1,1]
[4,"高新区","合肥高新区众创社会工作服务中心","新登记公益慈善类、科技类、行业协会类、城乡社区服务类",1,1]
[5,"高新区","合肥高新区兴园社区社会组织联合会","百强联合会",1]
[6,"高新区","合肥高新区长宁社区社会组织联合会","百强联合会",1]
[7,"高新区","合肥高新区蜀麓社区服务中心社区社会组织联合会","百强联合会",1]
[8,"高新区","高新区基层公共服务领域公益创投项目（1个）","基层公共服务领域公益创投项目",5]
[null,"新站区",null,null,119,2]
[1,"新站区","合肥新站高新区六益社会工作服务中心","新登记公益慈善类、科技类、行业协会类、城乡社区服务类",1,1]
[2,"新站区","合肥新站高新区雏鹰行动青少年公益服务中心","新登记公益慈善类、科技类、行业协会类、城乡社区服务类",1,1]
[3,"新站区","合肥新站高新区站北社区社会组织孵化园","街道级社区社会组织孵化园",20]
[4,"新站区","合肥新站区瑶海社区社会组织联合会","百强联合会",1]
[5,"新站区","新站区基层公共服务领域公益创投项目（1个）","基层公共服务领域公益创投项目",5]
["合计",{"$nulls":3},{"$f":"E277+E268+E253+E231+E191+E162+E144+E125+E107+E76+E45+E26+E4","v":1177.5},{"$f":"F277+F268+F253+F231+F191+F162+F144+F125+F107+F76+F45+F26+F4","v":165.7}]